fUST/lending_fUST_20250726
["ID","MTS","AMOUNT","RATE_DAILY","PERIOD"]
[375021258,1753505446918,-151.0,0.000195,2]
[375021260,1753505446928,-151.0,0.000195,2]
[375021262,1753505446937,-151.0,0.000195,2]
[375021264,1753505446946,-152.822213,0.000195,2]
[375021266,1753505446956,-211.054075,0.000195,2]
[375021268,1753505446965,-211.054075,0.000195,2]
[375021270,1753505446974,-151.0,0.000195,2]
[375021272,1753505446983,-275.438568,0.000195,2]
[375021274,1753505446992,-151.0,0.000195,2]
[375021276,1753505447002,-152.626866,0.000195,2]
[375021278,1753505447011,-151.0,0.000195,2]
[375021280,1753505447020,-151.0,0.000195,2]
[375021282,1753505447029,-287.493043,0.000195,2]
[375021284,1753505447043,-151.0,0.000195,2]
[375021286,1753505447052,-287.493043,0.000195,2]
[375021288,1753505447061,-151.0,0.000195,2]
[375021290,1753505447070,-151.0,0.000195,2]
[375021292,1753505447080,-151.0,0.000195,2]
[375021294,1753505447089,-360.71859,0.000195,2]
[375021296,1753505447098,-360.71859,0.000195,2]
[375021298,1753505447107,-151.0,0.000195,2]
[375021300,1753505447117,-151.0,0.000195,2]
[375021302,1753505447126,-151.0,0.000195,2]
[375021304,1753505447135,-151.0,0.000195,2]
[375021306,1753505447144,-381.792171,0.000195,2]
[375021308,1753505447155,-381.792171,0.000195,2]
[375021310,1753505447164,-151.0,0.000195,2]
[375021312,1753505447173,-151.0,0.000195,2]
[375021314,1753505447182,-151.0,0.000195,2]
[375021316,1753505447192,-151.0,0.000195,2]
[375021318,1753505447202,-220.788004,0.000195,2]
[375021320,1753505447211,-220.788004,0.000195,2]
[375021322,1753505447220,-151.0,0.000195,2]
[375021324,1753505447229,-151.0,0.00019502,2]
[375021326,1753505447238,-160.0,0.00019512,2]
[375021328,1753505447248,-13830.11018247,0.0001952,2]
[375021330,1753505447257,-274.45498048,0.00019536,2]
[375021332,1753505447266,-273.0,0.00019551,2]
[375021334,1753505447277,-2827.27816612,0.0001959,2]
[375021336,1753505447286,-151.0,0.00019603,2]
[375021338,1753505447295,-151.0,0.00019603,2]
[375021340,1753505447304,-225.814536,0.00019603,2]
[375021342,1753505447313,-225.814536,0.00019603,2]
[375021344,1753505447322,-161.70775938,0.00019621,2]
[375021346,1753505447331,-154.0,0.00019621,2]
[375021348,1753505447340,-154.0,0.00019621,2]
[375021350,1753505447350,-1754.0,0.00019621,2]
[375021352,1753505447359,-154.0,0.00019621,2]
[375021354,1753505447368,-1754.0,0.00019621,2]
[375021356,1753505447377,-1754.0,0.00019621,2]
[375021358,1753505447386,-256.04908145,0.00019621,2]
[375021360,1753505447395,-1754.0,0.00019621,2]
[375021362,1753505447406,-1754.0,0.00019621,2]
[375021364,1753505447415,-1754.0,0.00019621,2]
[375021366,1753505447424,-1754.0,0.00019621,2]
[375021368,1753505447433,-1754.0,0.00019621,2]
[375021370,1753505447443,-324.0,0.00019621,2]
[375021372,1753505447451,-1754.0,0.00019621,2]
[375021374,1753505447461,-1754.0,0.00019621,2]
[375021376,1753505447470,-324.0,0.00019621,2]
[375021378,1753505447479,-1754.0,0.00019621,2]
[375021380,1753505447488,-324.0,0.00019621,2]
[375021382,1753505447497,-1754.0,0.00019621,2]
[375021384,1753505447507,-1754.0,0.00019621,2]
[375021386,1753505447516,-324.0,0.00019621,2]
[375021388,1753505447525,-1754.0,0.00019621,2]
[375021390,1753505447534,-1754.0,0.00019621,2]
[375021392,1753505447543,-324.0,0.00019621,2]
[375021394,1753505447552,-1754.0,0.00019621,2]
[375021396,1753505447561,-324.0,0.00019621,2]
[375021398,1753505447570,-1754.0,0.00019621,2]
[375021400,1753505447579,-324.0,0.00019621,2]
[375021403,1753505447589,-1754.0,0.00019621,2]
[375021405,1753505447598,-324.0,0.00019621,2]
[375021407,1753505447607,-1754.0,0.00019621,2]
[375021409,1753505447616,-324.0,0.00019621,2]
[375021411,1753505447625,-1287.96183926,0.00019621,2]
[375021413,1753505447635,-324.0,0.00019621,2]
[375021415,1753505447644,-324.0,0.00019621,2]
[375021417,1753505447654,-324.0,0.00019621,2]
[375021419,1753505447663,-324.0,0.00019621,2]
[375021421,1753505447673,-324.0,0.00019621,2]
[375021423,1753505447683,-324.0,0.00019621,2]
[375021425,1753505447694,-324.0,0.00019621,2]
[375021427,1753505447704,-324.0,0.00019621,2]
[375021428,1753505447720,-324.0,0.00019621,2]
[375021430,1753505447731,-324.0,0.00019621,2]
[375021432,1753505447740,-324.0,0.00019621,2]
[375021434,1753505447749,-324.0,0.00019621,2]
[375021436,1753505447759,-324.0,0.00019621,2]
[375021438,1753505447768,-324.0,0.00019621,2]
[375021441,1753505447779,-324.0,0.00019621,2]
[375021450,1753505447861,-324.0,0.00019621,2]
[375021452,1753505447871,-324.0,0.00019621,2]
[375021454,1753505447881,-324.0,0.00019621,2]
[375021456,1753505447891,-324.0,0.00019621,2]
[375021459,1753505447900,-324.0,0.00019621,2]
[375021461,1753505447910,-324.0,0.00019621,2]
[375021463,1753505447920,-324.0,0.00019621,2]
[375021464,1753505447930,-324.0,0.00019621,2]
[375021467,1753505447940,-196.01216802,0.00019621,2]
[375021469,1753505447951,-324.0,0.00019621,2]
[375021471,1753505447960,-324.0,0.00019621,2]
[375021473,1753505447971,-324.0,0.00019621,2]
[375021475,1753505447980,-324.0,0.00019621,2]
[375021477,1753505447989,-11964.39728079,0.00019626,2]
[375021479,1753505447999,-273.0,0.00019645,2]
[375021481,1753505448008,-420.0,0.00019657,2]
[375021483,1753505448017,-1616.0,0.00019658,2]
[375021485,1753505448026,-500.0,0.00019664,2]
[375021487,1753505448037,-151.0,0.000197,2]
[375021489,1753505448047,-1000.0,0.00019721,2]
[375021491,1753505448056,-865.93149366,0.00019721,2]
[375021493,1753505448065,-1000.0,0.00019721,2]
[375021495,1753505448075,-1000.0,0.00019721,2]
[375021497,1753505448083,-200.0,0.00019725,2]
[375021499,1753505448093,-158.59226886,0.00019726,2]
[375021501,1753505448102,-530.0,0.00019726,2]
[375021503,1753505448111,-584.0,0.00019726,2]
[375021505,1753505448121,-259.05924156,0.00019726,2]
[375021507,1753505448130,-151.0,0.00019726,2]
[375021509,1753505448139,-500.0,0.00019726,2]
[375021511,1753505448148,-219.99750344,0.00019726,2]
[375021513,1753505448158,-267.92168094,0.00019726,2]
[375021515,1753505448167,-151.0,0.00019726,2]
[375021517,1753505448177,-335.73329908,0.00019726,2]
[375021519,1753505448187,-151.0,0.00019726,2]
[375021521,1753505448196,-151.0,0.00019726,2]
[375021523,1753505448205,-151.0,0.00019726,2]
[375021525,1753505448216,-251.451441,0.00019726,2]
[375021527,1753505448225,-151.0,0.00019726,2]
[375021529,1753505448235,-151.0,0.00019726,2]
[375021531,1753505448244,-151.0,0.00019726,2]
[375021533,1753505448253,-151.0,0.00019726,2]
[375021535,1753505448262,-151.0,0.00019726,2]
[375021537,1753505448271,-274.803603,0.00019726,2]
[375021539,1753505448281,-151.0,0.00019726,2]
[375021541,1753505448290,-151.0,0.00019726,2]
[375021543,1753505448299,-151.0,0.00019726,2]
[375021545,1753505448308,-152.631512,0.00019726,2]
[375021547,1753505448318,-460.0,0.00019726,2]
[375021549,1753505448327,-460.0,0.00019726,2]
[375021551,1753505448336,-468.27143303,0.00019726,2]
[375021553,1753505448345,-164.052568,0.00019726,2]
[375021555,1753505448355,-164.052568,0.00019726,2]
[375021557,1753505448364,-151.0,0.00019726,2]
[375021559,1753505448373,-460.0,0.00019726,2]
[375021561,1753505448382,-460.0,0.00019726,2]
[375021563,1753505448392,-228.5983271,0.00019726,2]
[375021565,1753505448402,-212.597928,0.00019726,2]
[375021567,1753505448411,-212.597928,0.00019726,2]
[375021569,1753505448420,-460.0,0.00019726,2]
[375021571,1753505448430,-460.0,0.00019726,2]
[375021573,1753505448440,-1106.594734,0.00019726,2]
[375021575,1753505448449,-151.0,0.00019726,2]
[375021577,1753505448458,-1106.594734,0.00019726,2]
[375021579,1753505448467,-151.0,0.00019726,2]
[375021581,1753505448477,-460.0,0.00019726,2]
[375021584,1753505448487,-460.0,0.00019726,2]
[375021585,1753505448496,-460.0,0.00019726,2]
[375021588,1753505448506,-460.0,0.00019726,2]
[375021589,1753505448515,-460.0,0.00019726,2]
[375021591,1753505448524,-460.0,0.00019726,2]
[375021594,1753505448534,-460.0,0.00019726,2]
[375021596,1753505448543,-460.0,0.00019726,2]
[375021597,1753505448552,-460.0,0.00019726,2]
[375021599,1753505448561,-460.0,0.00019726,2]
[375021602,1753505448571,-151.0,0.00019726,2]
[375021604,1753505448580,-460.0,0.00019726,2]
[375021606,1753505448590,-460.0,0.00019726,2]
[375021607,1753505448599,-466.20110151,0.00019726,2]
[375021609,1753505448608,-460.0,0.00019726,2]
[375021612,1753505448618,-460.0,0.00019726,2]
[375021613,1753505448628,-214.590823,0.00019726,2]
[375021615,1753505448637,-346.34582323,0.00019726,2]
[375021618,1753505448647,-460.0,0.00019726,2]
[375021620,1753505448657,-214.590823,0.00019726,2]
[375021621,1753505448666,-423.06888372,0.00019726,2]
[375021623,1753505448676,-151.0,0.00019726,2]
[375021626,1753505448686,-460.0,0.00019726,2]
[375021628,1753505448695,-466.58084196,0.00019726,2]
[375021629,1753505448707,-460.0,0.00019726,2]
[375021631,1753505448716,-151.0,0.00019726,2]
[375021634,1753505448726,-460.0,0.00019726,2]
[375021635,1753505448735,-463.40792529,0.00019726,2]
[375021638,1753505448748,-429.13335672,0.00019726,2]
[375021640,1753505448759,-151.0,0.00019726,2]
[375021642,1753505448769,-460.0,0.00019726,2]
[375021643,1753505448778,-201.10812,0.00019726,2]
[375021646,1753505448787,-460.0,0.00019726,2]
[375021648,1753505448797,-460.0,0.00019726,2]
[375021649,1753505448810,-151.0,0.00019726,2]
[375021652,1753505448819,-460.0,0.00019726,2]
[375021654,1753505448829,-284.84734229,0.00019726,2]
[375021656,1753505448839,-460.0,0.00019726,2]
[375021658,1753505448848,-460.0,0.00019726,2]
[375021660,1753505448858,-460.0,0.00019726,2]
[375021662,1753505448867,-460.0,0.00019726,2]
[375021664,1753505448877,-460.0,0.00019726,2]
[375021666,1753505448887,-460.0,0.00019726,2]
[375021668,1753505448897,-397.06698911,0.00019726,2]
[375021670,1753505448907,-460.0,0.00019726,2]
[375021672,1753505448917,-460.0,0.00019726,2]
[375021673,1753505448927,-501.93,0.00019726,2]
[375021675,1753505448936,-460.0,0.00019726,2]
[375021678,1753505448946,-498.33,0.00019726,2]
[375021679,1753505448956,-465.69600055,0.00019726,2]
[375021682,1753505448965,-460.0,0.00019726,2]
[375021683,1753505448975,-460.0,0.00019726,2]
[375021686,1753505448985,-460.0,0.00019726,2]
[375021687,1753505448994,-460.0,0.00019726,2]
[375021689,1753505449003,-460.0,0.00019726,2]
[375021691,1753505449013,-460.0,0.00019726,2]
[375021694,1753505449023,-460.0,0.00019726,2]
[375021696,1753505449033,-460.0,0.00019726,2]
[375021698,1753505449046,-460.0,0.00019726,2]
[375021700,1753505449055,-460.0,0.00019726,2]
[375021701,1753505449064,-360.71859,0.00019726,2]
[375021704,1753505449074,-460.0,0.00019726,2]
[375021713,1753505449152,-460.0,0.00019726,2]
[375021715,1753505449163,-360.71859,0.00019726,2]
[375021717,1753505449172,-460.0,0.00019726,2]
[375021719,1753505449182,-151.0,0.00019726,2]
[375021721,1753505449191,-151.0,0.00019726,2]
[375021723,1753505449202,-928.49,0.00019726,2]
[375021725,1753505449212,-460.0,0.00019726,2]
[375021727,1753505449222,-460.0,0.00019726,2]
[375021729,1753505449231,-460.0,0.00019726,2]
[375021731,1753505449240,-673.49,0.00019726,2]
[375021733,1753505449250,-460.0,0.00019726,2]
[375021735,1753505449259,-460.0,0.00019726,2]
[375021737,1753505449268,-907.02,0.00019726,2]
[375021739,1753505449277,-460.0,0.00019726,2]
[375021741,1753505449287,-460.0,0.00019726,2]
[375021743,1753505449297,-460.0,0.00019726,2]
[375021745,1753505449306,-460.0,0.00019726,2]
[375021747,1753505449316,-460.0,0.00019726,2]
[375021749,1753505449326,-151.0,0.00019726,2]
[375021751,1753505449335,-460.0,0.00019726,2]
[375021753,1753505449345,-460.0,0.00019726,2]
[375021755,1753505449355,-567.28,0.00019726,2]
[375021757,1753505449364,-460.0,0.00019726,2]
[375021759,1753505449374,-460.0,0.00019726,2]
[375021762,1753505449385,-479.63322651,0.00019726,2]
[375021764,1753505449396,-460.0,0.00019726,2]
[375021765,1753505449407,-460.0,0.00019726,2]
[375021768,1753505449416,-460.0,0.00019726,2]
[375021770,1753505449425,-460.0,0.00019726,2]
[375021771,1753505449435,-460.0,0.00019726,2]
[375021774,1753505449444,-466.37413156,0.00019726,2]
[375021776,1753505449455,-460.0,0.00019726,2]
[375021777,1753505449465,-460.0,0.00019726,2]
[375021780,1753505449475,-478.70290088,0.00019726,2]
[375021782,1753505449485,-151.0,0.00019726,2]
[375021784,1753505449495,-460.0,0.00019726,2]
[375021786,1753505449504,-460.0,0.00019726,2]
[375021788,1753505449514,-297.82594406,0.00019726,2]
[375021790,1753505449523,-460.0,0.00019726,2]
[375021792,1753505449532,-460.0,0.00019726,2]
[375021794,1753505449542,-464.73117359,0.00019726,2]
[375021796,1753505449551,-381.792171,0.00019726,2]
[375021798,1753505449561,-460.0,0.00019726,2]
[375021800,1753505449570,-381.792171,0.00019726,2]
[375021802,1753505449580,-460.0,0.00019726,2]
[375021804,1753505449590,-460.0,0.00019726,2]
[375021806,1753505449600,-460.0,0.00019726,2]
[375021807,1753505449610,-460.0,0.00019726,2]
[375021809,1753505449621,-460.0,0.00019726,2]
[375021812,1753505449630,-460.0,0.00019726,2]
[375021814,1753505449640,-1664.58,0.00019726,2]
[375021816,1753505449649,-713.96,0.00019726,2]
[375021818,1753505449659,-460.0,0.00019726,2]
[375021820,1753505449668,-857.5,0.00019726,2]
[375021821,1753505449677,-460.0,0.00019726,2]
[375021823,1753505449687,-460.0,0.00019726,2]
[375021825,1753505449698,-460.0,0.00019726,2]
[375021827,1753505449709,-153.020978,0.00019726,2]
[375021829,1753505449719,-460.0,0.00019726,2]
[375021832,1753505449731,-737.48,0.00019726,2]
[375021834,1753505449741,-473.8834658,0.00019726,2]
[375021836,1753505449751,-460.0,0.00019726,2]
[375021837,1753505449762,-460.0,0.00019726,2]
[375021840,1753505449773,-460.0,0.00019726,2]
[375021842,1753505449782,-522.30280774,0.00019726,2]
[375021843,1753505449791,-460.0,0.00019726,2]
[375021846,1753505449801,-460.0,0.00019726,2]
[375021848,1753505449810,-460.0,0.00019726,2]
[375021850,1753505449820,-460.0,0.00019726,2]
[375021852,1753505449829,-460.0,0.00019726,2]
[375021854,1753505449839,-460.0,0.00019726,2]
[375021856,1753505449848,-460.0,0.00019726,2]
[375021857,1753505449856,-266.61718001,0.00019726,2]
[375021860,1753505449866,-151.0,0.00019726,2]
[375021861,1753505449875,-151.0,0.00019726,2]
[375021863,1753505449886,-515.56,0.00019726,2]
[375021865,1753505449895,-460.0,0.00019726,2]
[375021867,1753505449905,-5864.91,0.00019726,2]
[375021870,1753505449915,-460.0,0.00019726,2]
[375021871,1753505449924,-460.0,0.00019726,2]
[375021874,1753505449935,-460.0,0.00019726,2]
[375021876,1753505449945,-460.0,0.00019726,2]
[375021878,1753505449954,-1987.79,0.00019726,2]
[375021879,1753505449964,-460.0,0.00019726,2]
[375021881,1753505449973,-466.91715391,0.00019726,2]
[375021884,1753505449984,-4593.46,0.00019726,2]
[375021886,1753505449993,-460.0,0.00019726,2]
[375021888,1753505450003,-479.00248526,0.00019726,2]
[375021889,1753505450012,-460.0,0.00019726,2]
[375021892,1753505450021,-460.0,0.00019726,2]
[375021893,1753505450031,-634.54,0.00019726,2]
[375021896,1753505450045,-460.0,0.00019726,2]
[375021898,1753505450055,-460.0,0.00019726,2]
[375021900,1753505450063,-474.65,0.00019726,2]
[375021902,1753505450072,-460.0,0.00019726,2]
[375021904,1753505450082,-460.0,0.00019726,2]
[375021905,1753505450091,-460.0,0.00019726,2]
[375021908,1753505450101,-460.0,0.00019726,2]
[375021909,1753505450110,-1535.27,0.00019726,2]
[375021911,1753505450120,-460.0,0.00019726,2]
[375021913,1753505450129,-460.0,0.00019726,2]
[375021916,1753505450140,-460.0,0.00019726,2]
[375021917,1753505450151,-460.0,0.00019726,2]
[375021920,1753505450161,-2604.34,0.00019726,2]
[375021922,1753505450171,-220.788004,0.00019726,2]
[375021923,1753505450182,-460.0,0.00019726,2]
[375021926,1753505450191,-612.87,0.00019726,2]
[375021928,1753505450200,-580.29,0.00019726,2]
[375021929,1753505450209,-229.98198293,0.00019726,2]
[375021932,1753505450219,-1128.98,0.00019726,2]
[375021934,1753505450228,-460.0,0.00019726,2]
[375021936,1753505450239,-460.0,0.00019726,2]
[375021938,1753505450248,-648.9,0.00019726,2]
[375021939,1753505450257,-3310.42,0.00019726,2]
[375021942,1753505450266,-2059.57,0.00019726,2]
[375021943,1753505450275,-460.0,0.00019726,2]
[375021946,1753505450286,-460.0,0.00019726,2]
[375021954,1753505450359,-220.788004,0.00019726,2]
[375021957,1753505450370,-277.47268191,0.00019726,2]
[375021959,1753505450380,-774.56,0.00019726,2]
[375021961,1753505450391,-555.44,0.00019726,2]
[375021962,1753505450400,-460.0,0.00019726,2]
[375021965,1753505450411,-460.0,0.00019726,2]
[375021966,1753505450419,-564.51,0.00019726,2]
[375021969,1753505450429,-460.0,0.00019726,2]
[375021971,1753505450438,-463.70005553,0.00019726,2]
[375021973,1753505450448,-460.0,0.00019726,2]
[375021975,1753505450457,-1232.44,0.00019726,2]
[375021977,1753505450467,-460.0,0.00019726,2]
[375021979,1753505450476,-1763.01,0.00019726,2]
[375021981,1753505450485,-511.63,0.00019726,2]
[375021983,1753505450494,-460.0,0.00019726,2]
[375021985,1753505450503,-8561.48,0.00019726,2]
[375021987,1753505450513,-485.76205847,0.00019726,2]
[375021989,1753505450522,-469.16714963,0.00019726,2]
[375021991,1753505450532,-266.3090274,0.00019726,2]
[375021993,1753505450541,-460.0,0.00019726,2]
[375021995,1753505450551,-460.0,0.00019726,2]
[375021997,1753505450559,-460.0,0.00019726,2]
[375021999,1753505450568,-460.0,0.00019726,2]
[375022001,1753505450578,-460.0,0.00019726,2]
[375022003,1753505450587,-460.0,0.00019726,2]
[375022005,1753505450596,-460.0,0.00019726,2]
[375022007,1753505450605,-460.0,0.00019726,2]
[375022009,1753505450615,-627.82,0.00019726,2]
[375022011,1753505450624,-460.0,0.00019726,2]
[375022013,1753505450633,-460.0,0.00019726,2]
[375022015,1753505450643,-1777.99,0.00019726,2]
[375022017,1753505450652,-1084.42,0.00019726,2]
[375022019,1753505450662,-1214.16,0.00019726,2]
[375022021,1753505450671,-460.0,0.00019726,2]
[375022023,1753505450682,-462.4968254,0.00019726,2]
[375022026,1753505450691,-2495.87,0.00019726,2]
[375022027,1753505450700,-460.0,0.00019726,2]
[375022030,1753505450710,-679.49,0.00019726,2]
[375022032,1753505450720,-460.0,0.00019726,2]
[375022034,1753505450730,-460.0,0.00019726,2]
[375022036,1753505450740,-474.09,0.00019726,2]
[375022037,1753505450749,-468.61885676,0.00019726,2]
[375022039,1753505450759,-460.0,0.00019726,2]
[375022041,1753505450768,-518.22,0.00019726,2]
[375022043,1753505450778,-151.0,0.00019726,2]
[375022045,1753505450787,-151.0,0.00019726,2]
[375022047,1753505450796,-460.0,0.00019726,2]
[375022049,1753505450807,-559.9,0.00019726,2]
[375022051,1753505450817,-460.0,0.00019726,2]
[375022053,1753505450827,-460.0,0.00019726,2]
[375022055,1753505450837,-2035.47,0.00019726,2]
[375022057,1753505450847,-460.0,0.00019726,2]
[375022059,1753505450857,-460.0,0.00019726,2]
[375022061,1753505450866,-684.58,0.00019726,2]
[375022063,1753505450875,-460.0,0.00019726,2]
[375022065,1753505450884,-1957.91,0.00019726,2]
[375022067,1753505450893,-460.0,0.00019726,2]
[375022069,1753505450902,-460.0,0.00019726,2]
[375022071,1753505450912,-460.0,0.00019726,2]
[375022073,1753505450921,-460.0,0.00019726,2]
[375022075,1753505450930,-1710.81,0.00019726,2]
[375022077,1753505450939,-1120.97,0.00019726,2]
[375022079,1753505450949,-460.0,0.00019726,2]
[375022081,1753505450958,-460.0,0.00019726,2]
[375022083,1753505450968,-460.0,0.00019726,2]
[375022084,1753505450977,-460.0,0.00019726,2]
[375022085,1753505450986,-637.99,0.00019726,2]
[375022086,1753505450995,-460.0,0.00019726,2]
[375022087,1753505451004,-509.06,0.00019726,2]
[375022088,1753505451013,-460.0,0.00019726,2]
[375022089,1753505451022,-460.0,0.00019726,2]
[375022090,1753505451032,-460.0,0.00019726,2]
[375022091,1753505451044,-460.0,0.00019726,2]
[375022092,1753505451053,-2827.27816612,0.00019728,2]
[375022093,1753505451062,-844.0,0.00019754,2]
[375022094,1753505451071,-273.0,0.00019757,2]
[375022095,1753505451080,-500.0,0.00019773,2]
[375022096,1753505451090,-500.0,0.00019773,2]
[375022098,1753505451099,-501.41261039,0.00019773,2]
[375022100,1753505451108,-502.04095239,0.00019773,2]
[375022102,1753505451120,-500.0,0.00019773,2]
[375022104,1753505451131,-500.0,0.00019773,2]
[375022106,1753505451140,-500.0,0.00019773,2]
[375022108,1753505451149,-500.0,0.00019773,2]
[375022110,1753505451160,-273.0,0.00019807,2]
[375022112,1753505451169,-1320.12643852,0.00019866,2]
[375026628,1753505834270,165.736405,0.0001684,2]
[375026630,1753505891912,5916.94,0.00023,30]
[375026631,1753505942287,-165.736405,0.00017008,2]
[375026632,1753505942308,-89.02769482,0.00017008,2]
[375026633,1753505945724,-174.001959,0.00017008,2]
[375026634,1753505981810,299.161404,0.00013699,2]
[375026636,1753506018607,5000.0,0.00017,2]
[375026637,1753506033976,5000.0,0.00017,2]
[375026638,1753506050383,5000.0,0.00017,2]
[375026640,1753506066915,1391.74608028,0.00017,2]
[375026641,1753506066938,3608.25391972,0.00017,2]
[375026643,1753506157898,8024.9131696,0.00016818,2]
[375026647,1753506233621,8366.83291068,0.00016784,2]
[375026648,1753506233644,9380.94986302,0.00016784,2]
[375026649,1753506379620,211.859462,0.00016727,2]
[375026650,1753506455572,417.99330676,0.00017,2]
[375026651,1753506469025,195.0,0.00026027,120]
[375026657,1753506599737,588.566755,0.00016704,2]
[375026702,1753506632815,-253.81848494,0.00017008,2]
[375026703,1753506632825,-213.08172304,0.00017282,2]
[375026704,1753506632835,-160.0,0.000175,2]
[375026705,1753506632844,-1033.7514781,0.00017502,2]
[375026706,1753506632854,-3882.6034625,0.00017687,2]
[375026707,1753506632863,-300.0,0.00017813,2]
[375026708,1753506632873,-300.0,0.00017813,2]
[375026709,1753506632882,-300.0,0.00017813,2]
[375026710,1753506632892,-1200.0,0.00017813,2]
[375026711,1753506632903,-300.0,0.00017813,2]
[375026712,1753506632913,-300.0,0.00017813,2]
[375026713,1753506632922,-50000.0,0.00017814,2]
[375026714,1753506632932,-1200.0,0.00017814,2]
[375026715,1753506632942,-500.0,0.00017818,2]
[375026716,1753506632951,-9716.4232783,0.00017821,2]
[375026717,1753506632960,-502.05907152,0.000179,2]
[375026718,1753506632969,-500.0,0.000179,2]
[375026719,1753506632979,-503.0809575,0.000179,2]
[375026720,1753506632988,-502.01747118,0.000179,2]
[375026721,1753506632998,-500.0,0.000179,2]
[375026722,1753506633007,-508.32899048,0.000179,2]
[375026723,1753506633016,-504.36477729,0.000179,2]
[375026724,1753506633026,-505.52411382,0.000179,2]
[375026725,1753506633035,-502.77940071,0.000179,2]
[375026726,1753506633045,-623.60967459,0.000179,2]
[375026727,1753506633055,-500.0,0.00018092,2]
[375026728,1753506633064,-185.65684638,0.000183,2]
[375026729,1753506633074,-154.70002979,0.00018322,2]
[375026730,1753506633083,-500.0,0.00018366,2]
[375026731,1753506633093,-230.86235649,0.00018394,2]
[375026732,1753506633103,-600.0,0.000184,2]
[375026733,1753506633113,-151.0,0.00018422,2]
[375026734,1753506633123,-151.0,0.00018422,2]
[375026735,1753506633132,-215.0738,0.00018422,2]
[375026736,1753506633142,-1114.24563921,0.00018448,2]
[375026737,1753506633151,-1000.0,0.00018448,2]
[375026738,1753506633161,-154.70002975,0.00018511,2]
[375026739,1753506633171,-317.2719586,0.00018516,2]
[375026740,1753506633181,-500.0,0.0001864,2]
[375026741,1753506633191,-154.70002975,0.000187,2]
[375026742,1753506633200,-8922.6981078,0.00018873,2]
[375026743,1753506633210,-154.70002975,0.00018889,2]
[375026744,1753506633220,-370.5,0.0001889,3]
[375026745,1753506633230,-50000.0,0.000189,2]
[375026747,1753506633241,-1275.68945074,0.000189,2]
[375026748,1753506633251,-500.0,0.00018914,2]
[375026749,1753506633261,-9376.40703875,0.00018914,2]
[375026750,1753506633271,-316.87607555,0.00018963,2]
[375026751,1753506633281,-21717.82247679,0.00018964,2]
[375026752,1753506633294,-9685.49775886,0.00018964,2]
[375026753,1753506633305,-898.48,0.00018964,2]
[375026754,1753506633317,-638.71990151,0.00018964,2]
[375026755,1753506633334,-1903.68130296,0.00018964,2]
[375026761,1753506638529,-500.0,0.00017813,2]
[375026762,1753506638539,-39.84621936,0.00017813,2]
[375026763,1753506638550,-318.26,0.00017813,2]
[375026764,1753506638583,-273.41437656,0.00017813,2]
[375026765,1753506638593,-500.0,0.00017813,2]
[375026766,1753506638603,-306.5586874,0.00017813,2]
[375026767,1753506638613,-425.26068464,0.00017813,2]